bitfinex-derivatives/quotes_BTCF0:USTF0_20250101
["timestamp","ask_amount","ask_price","bid_price","bid_amount"]
[1735748607725,0.15940587,94167.0,94153.0,0.053219]
[1735748607922,0.25740972,94167.0,94153.0,0.053219]
[1735748608121,0.053218,94154.0,94153.0,0.053219]
[1735748608727,0.15942754,94154.0,94153.0,0.053219]
[1735748609523,0.15942754,94154.0,94153.0,0.06366527]
[1735748610329,0.15942754,94154.0,94153.0,0.06566527]
[1735748610720,0.16042754,94154.0,94153.0,0.07166527]
[1735748611121,0.16042754,94154.0,94153.0,0.06366527]
[1735748611434,0.16242754,94154.0,94153.0,0.06366527]
[1735748614233,0.10920954,94154.0,94153.0,0.06366527]
[1735748626629,0.003,94154.0,94153.0,0.06366527]
[1735748626829,0.053209,94170.0,94155.0,0.053217]
[1735748627039,0.053209,94170.0,94162.0,0.3608]
[1735748627340,0.053206,94175.0,94170.0,0.053209]
[1735748627636,0.20420598,94169.0,94168.0,0.05321]
[1735748627826,0.09799644,94169.0,94168.0,0.05321]
[1735748629032,0.10299644,94169.0,94168.0,0.05321]
[1735748629229,0.10499644,94169.0,94168.0,0.05321]
[1735748630443,0.3608,94187.0,94168.0,0.05321]
[1735748630643,0.003,94169.0,94168.0,0.05321]
[1735748630838,0.003,94169.0,94168.0,0.06409528]
[1735748631137,0.00159311,94189.0,94188.0,0.053199]
[1735748631735,0.10776318,94189.0,94188.0,0.053199]
[1735748632137,0.09957007,94189.0,94188.0,0.053199]
[1735748632648,0.10697696,94189.0,94188.0,0.054199]
[1735748632957,0.11197696,94189.0,94188.0,0.055199]
[1735748633245,0.014,94189.0,94188.0,0.055199]
[1735748636341,0.014,94189.0,94188.0,0.06587164]
[1735748645238,0.3608,94205.0,94204.0,0.05319]
[1735748645839,0.46695204,94205.0,94204.0,0.05319]
[1735748646249,0.10615204,94205.0,94204.0,0.05319]
[1735748646750,0.00159259,94208.0,94207.0,0.053188]
[1735748647139,0.10774463,94208.0,94207.0,0.053188]
[1735748648548,0.10974463,94208.0,94207.0,0.053188]
[1735748648948,0.11174463,94208.0,94207.0,0.053188]
[1735748649143,0.10974463,94208.0,94207.0,0.053188]
[1735748649348,0.11174463,94208.0,94207.0,0.053188]
[1735748649847,0.00559259,94208.0,94207.0,0.053188]
[1735748650743,0.00359259,94208.0,94207.0,0.053188]
[1735748650949,0.00659259,94208.0,94207.0,0.053188]
[1735748651649,0.00659259,94208.0,94207.0,0.06362835]
[1735748651839,0.11274125,94208.0,94207.0,0.06362835]
[1735748658782,0.11274125,94208.0,94198.0,0.10831111]
[1735748658977,0.3608,94199.0,94198.0,0.16150411]
[1735748659282,0.3608,94199.0,94198.0,0.053193]
[1735748659669,0.46694866,94199.0,94198.0,0.053193]
[1735748659862,0.56491909,94199.0,94198.0,0.053193]
[1735748660575,0.09797043,94199.0,94198.0,0.058193]
[1735748661069,0.09797043,94199.0,94198.0,0.055193]
[1735748661274,0.09897043,94199.0,94198.0,0.055193]
[1735748661865,0.001,94199.0,94198.0,0.055193]
[1735748662478,0.002,94199.0,94198.0,0.053193]
[1735748663770,0.001,94199.0,94198.0,0.053193]
[1735748664066,0.00159259,94208.0,94198.0,0.053193]
[1735748664263,0.00159259,94208.0,94207.0,0.053188]
[1735748664759,0.10774125,94208.0,94207.0,0.053188]
[1735748665344,0.11074125,94208.0,94207.0,0.053188]
[1735748666356,0.11274125,94208.0,94207.0,0.053188]
[1735748666851,0.10974125,94208.0,94207.0,0.053188]
[1735748667051,0.11174125,94208.0,94207.0,0.053188]
[1735748667366,0.10354594,94208.0,94207.0,0.06368052]
[1735748667756,0.10154594,94208.0,94207.0,0.06368052]
[1735748667958,0.10254594,94208.0,94207.0,0.06368052]
[1735748670494,0.10054594,94208.0,94207.0,0.06368052]
[1735748670780,0.00459259,94208.0,94207.0,0.06368052]
[1735748674858,0.3608,94222.0,94207.0,0.06368052]
[1735748675057,0.3608,94222.0,94221.0,0.05318]
[1735748675469,0.033,94230.0,94229.0,0.053176]
[1735748675663,0.033,94230.0,94229.0,0.02738135]
[1735748676066,0.20407537,94230.0,94229.0,0.02738135]
[1735748676779,0.09794249,94230.0,94229.0,0.02738135]
[1735748677067,0.3608,94236.0,94229.0,0.02738135]
[1735748677264,0.003,94230.0,94229.0,0.02838135]
[1735748678561,0.008,94230.0,94229.0,0.02838135]
[1735748680571,0.008,94230.0,94229.0,0.03930307]
[1735748687075,0.008,94230.0,94229.0,0.40010307]
[1735748691674,0.10592991,94230.0,94229.0,0.40010307]
[1735748692677,0.10592991,94230.0,94229.0,1.90010307]
[1735748693071,0.008,94230.0,94229.0,1.90010307]
[1735748696778,0.008,94230.0,94229.0,0.40010307]
[1735748702181,0.14612325,94255.0,94248.0,0.053165]
[1735748702386,0.0317,94255.0,94248.0,0.053165]
[1735748702779,0.10769485,94249.0,94248.0,0.053165]
[1735748703680,0.001,94249.0,94248.0,0.054165]
[1735748704278,0.006,94249.0,94248.0,0.054165]
[1735748704480,0.007,94249.0,94248.0,0.055165]
[1735748704879,0.007,94249.0,94248.0,0.06574247]
[1735748705078,0.007,94249.0,94248.0,0.06474247]
[1735748705079,0.10391488,94249.0,94248.0,0.06474247]
[1735748706989,0.21417136,94280.0,94253.0,0.053162]
[1735748707182,0.51417136,94280.0,94271.0,0.3608]
[1735748707375,0.51417136,94280.0,94271.0,0.30094374]
[1735748707576,0.053151,94272.0,94271.0,0.30094374]
[1735748708174,0.15922309,94272.0,94271.0,0.30094374]
[1735748708581,0.15922309,94272.0,94271.0,0.35509574]
[1735748710274,0.15922309,94272.0,94271.0,0.35609574]
[1735748717981,0.15922309,94272.0,94271.0,0.29624086]
[1735748727194,0.15922309,94272.0,94271.0,0.415952]
[1735748729697,0.15922309,94272.0,94271.0,0.35610051]
[1735748729892,0.15922309,94272.0,94271.0,0.40925251]
[1735748732593,0.16222309,94272.0,94271.0,0.40925251]
[1735748733498,0.16222309,94272.0,94271.0,0.41025251]
[1735748733901,0.10907209,94272.0,94271.0,0.41025251]
[1735748735297,0.05917209,94272.0,94271.0,0.41025251]
[1735748737504,0.00927209,94272.0,94271.0,0.41025251]
[1735748738012,0.053142,94289.0,94288.0,0.053142]
[1735748738204,0.053142,94289.0,94288.0,0.413942]
[1735748738394,0.15921859,94289.0,94288.0,0.413942]
[1735748739300,0.15921859,94289.0,94288.0,0.414942]
[1735748739301,0.10907659,94289.0,94288.0,0.414942]
[1735748739608,0.05917659,94289.0,94288.0,0.414942]
[1735748739905,0.00927659,94289.0,94288.0,0.414942]
[1735748740203,0.00927659,94289.0,94288.0,0.415942]
[1735748740600,0.003,94289.0,94288.0,0.446342]
[1735748741395,0.1,94300.0,94288.0,0.445342]
[1735748741601,0.01219334,94297.0,94296.0,0.413938]
[1735748742102,0.11665462,94297.0,94296.0,0.413938]
[1735748743196,0.11665462,94297.0,94296.0,0.414938]
[1735748744209,0.11665462,94297.0,94296.0,0.775738]
[1735748744397,0.11665462,94297.0,94296.0,0.776738]
[1735748746599,0.11665462,94297.0,94296.0,0.78742129]
[1735748747505,0.1,94300.0,94296.0,0.78742129]
[1735748747506,0.08087975,94300.0,94296.0,0.78742129]
[1735748747908,0.10604847,94297.0,94296.0,0.78742129]
[1735748748207,0.053137,94297.0,94296.0,0.78742129]
[1735748748597,0.053137,94297.0,94296.0,0.78642129]
[1735748748799,0.053137,94297.0,94296.0,0.78742129]
[1735748748993,0.15918547,94297.0,94296.0,0.776738]
[1735748749197,0.15918547,94297.0,94296.0,0.7236]
[1735748749402,0.15918547,94297.0,94296.0,0.7226]
[1735748749600,0.15918547,94297.0,94296.0,0.7236]
[1735748750005,0.15918547,94297.0,94296.0,0.7226]
[1735748750198,0.15918547,94297.0,94296.0,0.7236]
[1735748750703,0.15918547,94297.0,94296.0,0.7226]
[1735748750905,0.15918547,94297.0,94296.0,0.775738]
[1735748751496,0.15918547,94297.0,94296.0,0.7226]
[1735748751701,0.15918547,94297.0,94296.0,0.001]
[1735748752602,0.15918547,94297.0,94296.0,0.3618]
[1735748758405,0.15918547,94297.0,94296.0,0.001]
[1735748758810,0.053147,94280.0,94275.0,0.053149]
[1735748759109,0.053148,94279.0,94275.0,0.413949]
[1735748759304,0.053148,94279.0,94275.0,0.053149]
[1735748759507,0.15919647,94279.0,94276.0,0.053149]
[1735748759703,0.053148,94279.0,94275.0,0.3608]
[1735748760005,0.10606928,94278.0,94275.0,0.3608]
[1735748760201,0.16876928,94278.0,94275.0,0.3608]
[1735748760808,0.053149,94277.0,94275.0,0.3608]
[1735748761607,0.10606984,94276.0,94275.0,0.3608]
[1735748765902,0.053145,94283.0,94279.0,0.053147]
[1735748766104,0.053146,94282.0,94280.0,0.053147]
[1735748766707,0.10607209,94281.0,94280.0,0.053147]
[1735748768609,0.10607209,94281.0,94280.0,0.054147]
[1735748771010,0.15921809,94281.0,94280.0,0.001]
[1735748771427,0.053146,94281.0,94280.0,0.001]
[1735748771622,0.15921247,94281.0,94280.0,0.001]
[1735748782329,0.053148,94278.0,94277.0,0.03]
[1735748783127,0.15921447,94278.0,94277.0,0.03]
[1735748795536,0.15921447,94278.0,94277.0,0.083149]
[1735748799154,0.15921447,94278.0,94277.0,0.804749]
[1735748800159,0.053145,94284.0,94283.0,0.053145]
[1735748801156,0.15921484,94284.0,94283.0,0.053145]
[1735748802863,0.15921484,94284.0,94283.0,0.054145]
[1735748805354,0.15921484,94284.0,94283.0,0.07055346]
[1735748806651,0.15921484,94284.0,94283.0,0.01740846]
[1735748813561,0.15921484,94284.0,94283.0,0.001]
[1735748826874,0.10606984,94284.0,94277.0,0.72312]
[1735748827185,0.053148,94278.0,94277.0,0.7216]
[1735748828066,0.15921109,94278.0,94277.0,0.7216]
[1735748846989,0.15921109,94278.0,94277.0,0.7528]
[1735748847784,0.10606309,94278.0,94277.0,0.7528]
[1735748848190,0.053145,94283.0,94277.0,0.805948]
[1735748848387,0.10606984,94278.0,94277.0,0.805948]
[1735748848787,0.053146,94282.0,94277.0,0.805948]
[1735748848989,0.10606984,94278.0,94277.0,0.805948]
[1735748849390,0.053146,94282.0,94277.0,0.805948]
[1735748849593,0.10606759,94278.0,94277.0,0.805948]
[1735748849888,0.01668626,94284.0,94277.0,0.805948]
[1735748850095,0.053147,94280.0,94277.0,0.805948]
[1735748850289,0.10606759,94278.0,94277.0,0.805948]
[1735748850493,0.053147,94280.0,94277.0,0.805948]
[1735748850897,0.10606647,94278.0,94277.0,0.805948]
[1735748851080,0.053147,94280.0,94277.0,0.805948]
[1735748851486,0.10606984,94278.0,94277.0,0.805948]
[1735748851685,0.053148,94279.0,94277.0,0.805948]
[1735748852089,0.10606984,94278.0,94277.0,0.805948]
[1735748852293,0.053148,94279.0,94277.0,0.805948]
[1735748852797,0.10606928,94278.0,94277.0,0.805948]
[1735748853386,0.053145,94284.0,94282.0,0.053146]
[1735748853597,0.053145,94284.0,94283.0,0.0323]
[1735748854001,0.053145,94284.0,94283.0,0.085445]
[1735748854308,0.15920809,94284.0,94283.0,0.085445]
[1735748855995,0.15920809,94284.0,94283.0,0.0323]
[1735748856196,0.053148,94279.0,94278.0,0.053148]
[1735748856890,0.15921109,94279.0,94278.0,0.053148]
[1735748857705,0.053148,94278.0,94277.0,0.72316]
[1735748857890,0.053148,94278.0,94277.0,0.774749]
[1735748858290,0.15921784,94278.0,94277.0,0.7216]
[1735748858798,0.25710094,94278.0,94277.0,0.7216]
[1735748858995,0.20395294,94278.0,94262.0,0.3608]
[1735748859185,0.053158,94261.0,94260.0,0.08671732]
[1735748859390,0.053158,94261.0,94260.0,0.01564234]
[1735748859590,0.0305,94266.0,94253.0,0.053162]
[1735748859785,0.053159,94259.0,94253.0,0.053162]
[1735748859999,0.053159,94259.0,94251.0,0.43339498]
[1735748860391,0.15925022,94259.0,94255.0,0.053161]
[1735748860800,0.25713332,94259.0,94255.0,0.053161]
[1735748860999,0.20397432,94259.0,94258.0,0.05475027]
[1735748861300,0.20397432,94259.0,94258.0,0.07131739]
[1735748862002,0.20397432,94259.0,94258.0,0.07531739]
[1735748867307,0.10609122,94259.0,94258.0,0.07531739]
[1735748867697,0.3608,94267.0,94266.0,0.053155]
[1735748868205,0.56480047,94267.0,94258.0,0.00759127]
[1735748868511,0.3608,94259.0,94245.0,0.053166]
[1735748868709,0.3608,94246.0,94245.0,0.053166]
[1735748869207,0.3608,94246.0,94233.0,0.033]
[1735748869208,0.053167,94244.0,94240.0,0.053169]
[1735748869407,0.46688222,94246.0,94240.0,0.053169]
[1735748869611,0.3608,94246.0,94219.0,0.033]
[1735748869905,0.053176,94229.0,94226.0,0.0547689]
[1735748870108,0.0306,94228.0,94226.0,0.0547689]
[1735748870313,0.0621,94228.0,94226.0,0.0547689]
[1735748870604,0.10612613,94227.0,94226.0,0.0547689]
[1735748871614,0.20403538,94227.0,94226.0,0.0547689]
[1735748871795,0.20403538,94227.0,94226.0,0.0587689]
[1735748872001,0.20403538,94227.0,94226.0,0.0597689]
[1735748872501,0.20703538,94227.0,94226.0,0.0557689]
[1735748872702,0.20703538,94227.0,94226.0,0.0547689]
[1735748873001,0.20803538,94227.0,94226.0,0.0547689]
[1735748875106,0.11012613,94227.0,94226.0,0.0547689]
[1735748876005,0.16330313,94227.0,94226.0,0.0547689]
[1735748878007,0.16330313,94227.0,94226.0,0.053177]
[1735748878910,0.16330313,94227.0,94218.0,0.3608]
[1735748879111,0.16330313,94227.0,94220.0,0.053181]
[1735748879512,0.053181,94219.0,94218.0,0.3608]
[1735748880105,0.15931276,94219.0,94218.0,0.3608]
[1735748881204,0.053183,94216.0,94210.0,0.053186]
[1735748881609,0.053183,94216.0,94213.0,0.053184]
[1735748881916,0.10613626,94215.0,94213.0,0.053184]
[1735748882311,0.15932026,94215.0,94213.0,0.053184]
[1735748882817,0.053186,94212.0,94208.0,0.053187]
[1735748883017,0.10614133,94214.0,94207.0,0.00159224]
[1735748883318,0.003,94216.0,94209.0,0.053187]
[1735748883319,0.053186,94211.0,94209.0,0.053187]
[1735748884111,0.10614584,94210.0,94209.0,0.053187]
[1735748885616,0.10614584,94210.0,94209.0,0.413987]
[1735748885838,0.10814584,94210.0,94209.0,0.413987]
[1735748886126,0.002,94210.0,94209.0,0.413987]
[1735748886318,0.1061464,94210.0,94209.0,0.413987]
[1735748886617,0.3608,94225.0,94209.0,0.413987]
[1735748886824,0.053181,94220.0,94218.0,0.053182]
[1735748887227,0.3608,94225.0,94218.0,0.053182]
[1735748887228,0.1593274,94219.0,94218.0,0.053182]
[1735748887653,0.053181,94219.0,94218.0,0.053182]
[1735748888042,0.1593167,94219.0,94218.0,0.053182]
[1735748889833,0.1603167,94219.0,94218.0,0.053182]
[1735748890236,0.1071357,94219.0,94216.0,0.0327]
[1735748890438,0.053183,94216.0,94215.0,0.10836054]
[1735748890739,0.053183,94216.0,94215.0,0.053183]
[1735748891240,0.15931926,94216.0,94215.0,0.053183]
[1735748891879,0.053185,94213.0,94211.0,0.0327]
[1735748892017,0.053185,94213.0,94211.0,0.085885]
[1735748892229,0.053185,94212.0,94211.0,0.0327]
[1735748892427,0.15932859,94212.0,94211.0,0.0327]
[1735748892814,0.053185,94212.0,94211.0,0.0327]
[1735748893220,0.15932859,94212.0,94211.0,0.0327]
[1735748893422,0.15932859,94212.0,94211.0,0.0347]
[1735748893627,0.15932859,94212.0,94211.0,0.0357]
[1735748894125,0.10614359,94212.0,94211.0,0.088886]
[1735748895127,0.10614359,94212.0,94211.0,0.087886]
[1735748896027,0.10614359,94212.0,94211.0,0.086886]
[1735748896415,0.10614359,94212.0,94211.0,0.088886]
[1735748901326,0.053185,94212.0,94211.0,0.0357]
[1735748901632,0.15932915,94212.0,94211.0,0.003]
[1735748902833,0.16032915,94212.0,94211.0,0.002]
[1735748903032,0.053186,94210.0,94209.0,0.3608]
[1735748903623,0.1593324,94210.0,94209.0,0.3608]
[1735748904326,0.25728932,94210.0,94209.0,0.3608]
[1735748906931,0.25828932,94210.0,94209.0,0.3608]
[1735748907833,0.25728932,94210.0,94209.0,0.3628]
[1735748908327,0.1593324,94210.0,94209.0,0.3628]
[1735748908631,0.1603324,94210.0,94209.0,0.3618]
[1735748909225,0.1603324,94210.0,94209.0,0.3608]
[1735748912038,0.25828669,94210.0,94209.0,0.3608]
[1735748912431,0.20510069,94210.0,94209.0,0.413987]
[1735748913637,0.20510069,94210.0,94200.0,0.21672108]
[1735748913638,0.56590069,94210.0,94192.0,0.0648]
[1735748913831,0.3608,94201.0,94190.0,0.36239226]
[1735748914031,0.053197,94191.0,94190.0,0.36239226]
[1735748914225,0.053197,94191.0,94190.0,0.00159226]
[1735748914539,0.15936481,94191.0,94190.0,0.00159226]
[1735748915039,0.2573191,94191.0,94190.0,0.00959226]
[1735748915431,0.2573191,94191.0,94190.0,0.01259226]
[1735748916629,0.2573191,94191.0,94190.0,0.01159226]
[1735748916839,0.10611858,94191.0,94190.0,0.01159226]
[1735748917037,0.15931558,94191.0,94190.0,0.01159226]
[1735748917236,0.17588567,94191.0,94190.0,0.00459226]
[1735748917439,0.17588567,94191.0,94190.0,0.01159226]
[1735748919836,0.17588567,94191.0,94190.0,0.37239226]
[1735748922134,0.17588567,94191.0,94190.0,0.3863289]
[1735748924639,0.07793138,94191.0,94190.0,0.3863289]
[1735748932050,0.17590465,94191.0,94190.0,0.3863289]
[1735748932346,0.15933456,94191.0,94190.0,0.3863289]
[1735748932648,0.06136129,94191.0,94190.0,0.3863289]
[1735748933144,0.00816429,94191.0,94190.0,0.3863289]
[1735748933348,0.00816429,94191.0,94190.0,0.4395269]
[1735748936449,0.053196,94194.0,94193.0,0.053196]
[1735748936750,0.01663892,94194.0,94191.0,0.0332]
[1735748936935,0.01663892,94193.0,94192.0,0.084296]
[1735748937142,0.01663886,94193.0,94192.0,0.084296]
[1735748938034,0.053194,94198.0,94192.0,0.0311]
[1735748938236,0.01667625,94197.0,94192.0,0.0311]
[1735748938439,0.01667625,94196.0,94192.0,0.0341]
[1735748938746,0.053194,94198.0,94192.0,0.0341]
[1735748938942,0.01673537,94197.0,94192.0,0.0341]
[1735748939139,0.35059521,94211.0,94192.0,0.0341]
[1735748939140,0.01673515,94196.0,94192.0,0.009]
[1735748939449,0.053196,94193.0,94192.0,0.062196]
[1735748939649,0.06993115,94193.0,94192.0,0.062196]
[1735748940040,0.17609502,94193.0,94192.0,0.062196]
[1735748940248,0.12289902,94193.0,94192.0,0.062196]
[1735748940947,0.12289902,94193.0,94192.0,0.059196]
[1735748941340,0.12289902,94193.0,94192.0,0.062196]
[1735748941540,0.17609502,94193.0,94192.0,0.062196]
[1735748944945,0.12289902,94193.0,94192.0,0.062196]
[1735748945143,0.01673515,94193.0,94192.0,0.062196]
[1735748948547,0.01673515,94193.0,94192.0,0.056196]
[1735748948750,0.01673515,94193.0,94192.0,0.063196]
[1735748950441,0.01673515,94193.0,94192.0,0.060196]
[1735748950739,0.01673515,94193.0,94192.0,0.061196]
[1735748952450,0.11470252,94193.0,94192.0,0.061196]
[1735748955349,0.46506931,94209.0,94192.0,0.061196]
[1735748955350,0.053189,94206.0,94192.0,0.061196]
[1735748955551,0.053189,94206.0,94204.0,0.053189]
[1735748956143,0.10616556,94205.0,94204.0,0.053189]
[1735748957251,0.15935456,94205.0,94204.0,0.053189]
[1735748957657,0.053189,94205.0,94204.0,0.053189]
[1735748957952,0.15934104,94205.0,94204.0,0.053189]
[1735748958151,0.15934104,94205.0,94204.0,0.054189]
[1735748958743,0.15934104,94205.0,94204.0,0.001]
[1735748960946,0.25730306,94205.0,94204.0,0.001]
[1735748965256,0.27375389,94205.0,94204.0,0.001]
[1735748967253,0.27375389,94205.0,94204.0,0.05419]
[1735748975654,0.27375389,94205.0,94204.0,0.05319]
[1735748975858,0.27375389,94205.0,94204.0,0.05519]
[1735748976459,0.27375389,94205.0,94204.0,0.05419]
[1735748976658,0.27375389,94205.0,94204.0,0.05519]
[1735748978264,0.27375389,94205.0,94204.0,0.05419]
[1735748978466,0.27375389,94205.0,94204.0,0.05519]
[1735748980268,0.22056489,94205.0,94204.0,0.05519]
[1735748981459,0.20411406,94205.0,94204.0,0.05519]
[1735748985465,0.2204853,94205.0,94204.0,0.05519]
[1735748989578,0.2204853,94205.0,94204.0,0.02499985]
[1735748990472,0.20411406,94205.0,94204.0,0.02499985]
[1735748990787,0.09796202,94205.0,94204.0,0.02499985]
[1735749001079,0.3608,94230.0,94221.0,0.05318]
[1735749001679,0.46695204,94222.0,94221.0,0.05318]
[1735749002083,0.56490833,94222.0,94221.0,0.05318]
[1735749002582,0.56790833,94222.0,94221.0,0.05318]
[1735749003079,0.6823595,94222.0,94221.0,0.05318]
[1735749003475,0.57620746,94222.0,94221.0,0.05318]
[1735749003682,0.68234034,94222.0,94221.0,0.05318]
[1735749003874,0.56788917,94222.0,94221.0,0.05318]
[1735749005879,0.68234034,94222.0,94221.0,0.05318]
[1735749006673,0.68234034,94222.0,94221.0,0.02650575]
[1735749009582,0.68234034,94222.0,94208.0,0.3608]
[1735749009786,0.053181,94219.0,94208.0,0.3608]
[1735749009985,0.0975,94218.0,94215.0,0.053183]
[1735749010279,0.0975,94218.0,94208.0,0.053187]
[1735749010483,0.3608,94214.0,94208.0,0.053187]
[1735749011488,0.10613852,94213.0,94208.0,0.053187]
[1735749011800,0.10613852,94213.0,94200.0,0.43195967]
[1735749011801,0.31854598,94213.0,94200.0,0.43195967]
[1735749012574,0.09795629,94212.0,94200.0,0.43195967]
[1735749013083,0.04958428,94213.0,94208.0,0.053187]
[1735749013280,0.10614978,94211.0,94208.0,0.053187]
[1735749013780,0.04958428,94213.0,94208.0,0.053187]
[1735749014080,0.1061464,94212.0,94209.0,0.053186]
[1735749014275,0.06185166,94213.0,94209.0,0.053186]
[1735749014580,0.1061464,94212.0,94209.0,0.053186]
[1735749014785,0.1061464,94212.0,94200.0,0.50411934]
[1735749014977,0.1061464,94212.0,94211.0,0.053186]
[1735749016688,0.1071464,94212.0,94211.0,0.053186]
[1735749017180,0.1071464,94212.0,94205.0,0.053189]
[1735749017785,0.1071464,94212.0,94200.0,0.3608]
[1735749018176,0.0796664,94212.0,94200.0,0.3608]
[1735749018478,0.07115967,94210.0,94200.0,0.3608]
[1735749018681,0.05319,94204.0,94200.0,0.3608]
[1735749018881,0.05319,94204.0,94198.0,0.053193]
[1735749019086,0.053191,94201.0,94200.0,0.003]
[1735749019380,0.053191,94201.0,94200.0,0.004]
[1735749019781,0.25731175,94201.0,94200.0,0.004]
[1735749019981,0.31661175,94201.0,94200.0,0.004]
[1735749021189,0.31661175,94201.0,94200.0,0.003]
[1735749021885,0.31661175,94201.0,94200.0,0.004]
[1735749023778,0.26342075,94201.0,94181.0,0.3608]
[1735749023984,0.053197,94191.0,94181.0,0.3608]
[1735749024678,0.0532,94186.0,94181.0,0.3608]
[1735749024876,0.0324,94185.0,94181.0,0.3608]
[1735749025082,0.053202,94182.0,94181.0,0.3608]
[1735749025778,0.053206,94176.0,94170.0,0.3608]
[1735749026092,0.053208,94173.0,94170.0,0.3608]
[1735749026387,0.053208,94171.0,94170.0,0.3608]
[1735749027190,0.053208,94171.0,94162.0,0.031693]
[1735749027191,0.10619036,94171.0,94162.0,0.031693]
[1735749027392,0.04421,94168.0,94162.0,0.031693]
[1735749027883,0.414013,94164.0,94162.0,0.031693]
[1735749028082,0.405013,94164.0,94162.0,0.084906]
[1735749028584,0.10619656,94163.0,94162.0,0.016593]
[1735749028786,0.13719656,94163.0,94162.0,0.016593]
[1735749029085,0.16859656,94163.0,94157.0,0.053216]
[1735749029286,0.16859656,94163.0,94148.0,0.0319]
[1735749029488,0.053217,94156.0,94148.0,0.0319]
[1735749029688,0.053217,94156.0,94147.0,0.3608]
[1735749029689,0.1085366,94160.0,94147.0,0.3608]
[1735749029885,0.1085366,94160.0,94147.0,0.414022]
[1735749030085,0.05322,94151.0,94147.0,0.3608]
[1735749030294,0.10620728,94159.0,94152.0,0.053219]
[1735749030596,0.053218,94154.0,94152.0,0.053219]
[1735749031285,0.10620728,94153.0,94152.0,0.053219]
[1735749032095,0.10620728,94153.0,94152.0,0.055219]
[1735749032394,0.20423001,94153.0,94152.0,0.055219]
[1735749032795,0.20423001,94153.0,94152.0,0.053219]
[1735749033000,0.20423001,94153.0,94152.0,0.055219]
[1735749033988,0.20523001,94153.0,94152.0,0.055219]
[1735749034689,0.10720728,94153.0,94152.0,0.055219]
[1735749037190,0.05730728,94153.0,94152.0,0.055219]
[1735749038291,0.26302961,94164.0,94152.0,0.002]
[1735749038692,0.10621066,94153.0,94152.0,0.002]
[1735749038898,0.053218,94154.0,94152.0,0.002]
[1735749039088,0.10620446,94153.0,94152.0,0.002]
[1735749039397,0.053218,94154.0,94152.0,0.002]
[1735749039693,0.15942346,94153.0,94152.0,0.002]
[1735749040087,0.053219,94153.0,94152.0,0.002]
[1735749040293,0.1594291,94153.0,94152.0,0.002]
[1735749040999,0.1604291,94153.0,94152.0,0.002]
[1735749041903,0.1072101,94153.0,94147.0,0.3608]
[1735749042099,0.053221,94148.0,94147.0,0.3608]
[1735749042689,0.15943166,94148.0,94147.0,0.3608]
[1735749043490,0.16043166,94148.0,94147.0,0.3608]
[1735749043699,0.16343166,94148.0,94147.0,0.3608]
[1735749044804,0.16343166,94148.0,94147.0,0.414022]
[1735749050703,0.26145407,94148.0,94147.0,0.414022]
[1735749050896,0.26145407,94148.0,94147.0,0.3608]
[1735749056391,0.053224,94144.0,94143.0,0.00159336]
[1735749057108,0.15944482,94144.0,94143.0,0.00159336]
[1735749057794,0.05323,94133.0,94132.0,0.0319]
[1735749058505,0.15945082,94133.0,94132.0,0.0319]
[1735749059402,0.25748206,94133.0,94132.0,0.0319]
[1735749059800,0.25948206,94133.0,94132.0,0.0319]
[1735749060200,0.26048206,94133.0,94132.0,0.0319]
[1735749061101,0.053231,94130.0,94129.0,0.3608]
[1735749061801,0.15946423,94130.0,94129.0,0.3608]
[1735749063606,0.15946423,94130.0,94120.0,0.1085366]
[1735749063607,0.053233,94127.0,94117.0,0.3608]
[1735749063801,0.05324,94114.0,94102.0,0.0974]
[1735749064202,0.15947662,94114.0,94102.0,0.0974]
[1735749064707,0.053247,94103.0,94102.0,0.0332]
[1735749065201,0.414038,94118.0,94102.0,0.0332]
[1735749065202,0.053245,94107.0,94102.0,0.0332]
[1735749065402,0.053244,94107.0,94106.0,0.3608]
[1735749066113,0.15950658,94107.0,94106.0,0.3608]
[1735749067104,0.25757075,94107.0,94106.0,0.3638]
[1735749068198,0.25857075,94107.0,94106.0,0.3638]
[1735749068911,0.20532675,94107.0,94106.0,0.3638]
[1735749069714,0.10726258,94107.0,94106.0,0.3638]
[1735749074212,0.3608,94126.0,94106.0,0.3638]
[1735749074401,0.053234,94125.0,94124.0,0.3608]
[1735749074606,0.053231,94131.0,94124.0,0.3608]
[1735749074804,0.053231,94131.0,94125.0,0.0331]
[1735749075712,0.10624226,94130.0,94125.0,0.0331]
[1735749075908,0.10624226,94130.0,94129.0,0.053232]
[1735749077214,0.11124226,94130.0,94129.0,0.053232]
[1735749077607,0.001594,94144.0,94129.0,0.053232]
[1735749077808,0.3608,94146.0,94130.0,0.1085366]
[1735749078208,0.053225,94142.0,94130.0,0.1085366]
[1735749078416,0.053231,94131.0,94130.0,0.1085366]
[1735749078616,0.053231,94130.0,94129.0,0.053232]
[1735749079120,0.15946762,94130.0,94129.0,0.053232]
[1735749080220,0.2575028,94130.0,94129.0,0.053232]
[1735749080611,0.2615028,94130.0,94129.0,0.053232]
[1735749082720,0.2082718,94130.0,94129.0,0.053232]
[1735749082925,0.053233,94127.0,94126.0,0.01186948]
[1735749083114,0.053233,94127.0,94124.0,0.3608]
[1735749083319,0.053233,94127.0,94126.0,0.053234]
[1735749083624,0.15126818,94127.0,94126.0,0.053234]
[1735749084029,0.2575048,94127.0,94126.0,0.053234]
[1735749084327,0.053234,94125.0,94124.0,0.3608]
[1735749084912,0.159474,94125.0,94124.0,0.3608]
[1735749085316,0.25750918,94125.0,94124.0,0.3608]
[1735749085521,0.25750918,94125.0,94124.0,0.414035]
[1735749086935,0.20427518,94125.0,94124.0,0.414035]
[1735749087327,0.10624,94125.0,94124.0,0.414035]
[1735749087731,0.053232,94129.0,94125.0,0.053234]
[1735749088034,0.10624226,94128.0,94125.0,0.053234]
[1735749088234,0.053232,94129.0,94124.0,0.3608]
[1735749088434,0.053232,94129.0,94126.0,0.053234]
[1735749088634,0.10624226,94128.0,94126.0,0.053234]
[1735749089223,0.15947526,94128.0,94126.0,0.053234]
[1735749089428,0.053234,94125.0,94124.0,0.3608]
[1735749089737,0.053234,94125.0,94124.0,0.414035]